fUST/lending_fUST_20251230
["ID","MTS","AMOUNT","RATE_DAILY","PERIOD"]
[400049914,1767052261300,-151.0,0.00037349,31]
[400049915,1767052261309,-151.0,0.00037349,31]
[400049916,1767052261319,-150.58,0.00037349,60]
[400049917,1767052261328,-2242.88,0.00037349,60]
[400049918,1767052261338,-6353.53757406,0.00037389,58]
[400049919,1767052261348,-5000.0,0.00037389,57]
[400049920,1767052261357,-5000.0,0.00037389,63]
[400049921,1767052261366,-5000.0,0.00037389,57]
[400049922,1767052261375,-150.58,0.00037449,60]
[400049923,1767052261385,-2242.88,0.00037449,60]
[400049924,1767052261395,-151.0,0.00037454,31]
[400049925,1767052261405,-153.87358,0.00037454,31]
[400049926,1767052261415,-151.0,0.00037454,31]
[400049927,1767052261424,-200402.56716442,0.00037454,7]
[400049928,1767052261563,-388.51668446,0.00013354,2]
[400049929,1767052261593,-1193.04204741,0.00013354,2]
[400049930,1767052261626,-3418.44126813,0.00013354,2]
[400049931,1767052261635,-500.0,0.00013489,2]
[400049932,1767052261645,-529.29164336,0.00013489,2]
[400049933,1767052261654,-500.0,0.00013698,2]
[400049934,1767052261663,-169.7444623,0.00021917,2]
[400049935,1767052261673,-500.0,0.00024383,2]
[400049936,1767052261682,-500.0,0.00024657,2]
[400049937,1767052261691,-500.0,0.00024931,2]
[400049938,1767052261701,-500.0,0.00025205,2]
[400049939,1767052261710,-500.0,0.00025479,2]
[400049940,1767052261719,-412.21,0.00025753,2]
[400049941,1767052261730,-8.20707083,0.0002779,2]
[400049942,1767052273375,-353.85347269,0.00013354,2]
[400049943,1767052274893,-159.7911563,0.00013354,2]
[400049952,1767052279085,-340.45450613,0.00013354,2]
[400049957,1767052282779,-300.0,0.00013354,2]
[400049958,1767052287637,-442.22031156,0.00013354,2]
[400049960,1767052291353,-169.33706153,0.00013354,2]
[400049961,1767052294310,-247.98812078,0.00013354,2]
[400049964,1767052296284,-347.72247666,0.00013354,2]
[400049965,1767052298446,-639.41770508,0.00013354,2]
[400049967,1767052304422,-340.51792045,0.00013354,2]
[400049968,1767052306512,-152.75810031,0.00013354,2]
[400049969,1767052311137,-264.90287786,0.00013354,2]
[400049970,1767052313718,-347.24189969,0.00013354,2]
[400049971,1767052318841,-219.25225268,0.00013354,2]
[400049972,1767052320356,-312.61816292,0.00013354,2]
[400049973,1767052322176,-283.26051681,0.00013354,2]
[400049974,1767052346864,-171.12242898,0.00013273,2]
[400049975,1767052351126,-275.09166051,0.00013273,2]
[400049976,1767052376652,-54.59328264,0.00013273,2]
[400049977,1767052376676,-78.66345855,0.00013354,2]
[400049978,1767052376704,-199.81355867,0.0001339,2]
[400049979,1767052378310,-265.30094976,0.0001339,2]
[400049980,1767052382926,-368.19767936,0.0001339,2]
[400049981,1767052386087,-237.91373876,0.0001339,2]
[400049982,1767052389454,5000.0,0.00013172,2]
[400049983,1767052390882,-500.0,0.0001339,2]
[400049984,1767052393442,-357.80510649,0.0001339,2]
[400049985,1767052398926,-160.52,0.0001339,2]
[400049986,1767052412786,5000.0,0.00013172,2]
[400049987,1767052436179,5000.0,0.00013172,2]
[400049988,1767052459339,5000.0,0.00013172,2]
[400049989,1767052482553,5000.0,0.00013172,2]
[400049990,1767052495632,603.05,0.00013036,2]
[400049991,1767052505515,5000.0,0.00013172,2]
[400049992,1767052528511,5000.0,0.00013172,2]
[400049993,1767052551559,5000.0,0.00013172,2]
[400049994,1767052575507,5000.0,0.00013172,2]
[400049995,1767052575824,595.37,0.00013064,2]
[400049996,1767052601652,5000.0,0.00013172,2]
[400049997,1767052625637,5000.0,0.00013172,2]
[400049998,1767052649885,5000.0,0.00013172,2]
[400049999,1767052659475,587.79,0.00013047,2]
[400050000,1767052674403,5000.0,0.00013172,2]
[400050001,1767052698421,1242.52411085,0.00013172,2]
[400050002,1767052742665,580.31,0.00013023,2]
[400050003,1767052792743,469.2200309,0.00012388,2]
[400050006,1767052824333,572.93,0.00013018,2]
[400050009,1767052835651,814.95603,0.00027,120]
[400050010,1767052835901,814.95603,0.000281,120]
[400050013,1767052870455,297.5119777,0.00012387,2]
[400050014,1767052904275,161.045,0.00013122,2]
[400050015,1767052907745,565.64,0.00013036,2]
[400050016,1767052990262,558.44,0.00013034,2]
[400050017,1767053072083,551.33,0.00013049,2]
[400050018,1767053111703,1659.14,0.00028767,120]
[400050019,1767053153512,544.31,0.00013043,2]
[400050020,1767053237443,537.38,0.00013022,2]
[400050021,1767053321786,530.54,0.0001306,2]
[400050022,1767053365383,999.0,0.00012382,2]
[400050023,1767053406276,523.79,0.000128,2]
[400050077,1767053431690,-288.07975173,0.00013273,2]
[400050079,1767053431700,-330.05857618,0.00013273,2]
[400050081,1767053431712,-277.94142382,0.00013273,2]
[400050083,1767053431721,-173.45253823,0.00013284,2]
[400050085,1767053431733,-9454.79106164,0.00013284,2]
[400050096,1767053431835,-778.48675578,0.00013284,2]
[400050164,1767053437911,-3790.93147812,0.00013281,2]
[400050165,1767053437922,-989593.26964435,0.00013284,2]
[400050166,1767053437932,-300.0,0.00013381,2]
[400050167,1767053437942,-300.0,0.00013381,2]
[400050168,1767053437952,-300.0,0.00013381,2]
[400050169,1767053437962,-500.0,0.00013382,2]
[400050170,1767053437971,-500.0,0.00013382,2]
[400050171,1767053437981,-500.0,0.00013382,2]
[400050172,1767053437990,-500.0,0.00013382,2]
[400050173,1767053437999,-500.0,0.00013382,2]
[400050174,1767053438009,-500.0,0.00013382,2]
[400050175,1767053438019,-500.0,0.00013382,2]
[400050176,1767053438028,-500.0,0.00013382,2]
[400050177,1767053438042,-500.0,0.00013382,2]
[400050178,1767053438051,-500.0,0.00013382,2]
[400050179,1767053438060,-500.0,0.00013382,2]
[400050180,1767053438070,-242.87198785,0.00013382,2]
[400050181,1767053438080,-500.0,0.00013382,2]
[400050182,1767053438089,-500.0,0.00013382,2]
[400050183,1767053438099,-500.0,0.00013382,2]
[400050184,1767053438108,-500.0,0.00013382,2]
[400050185,1767053438118,-500.0,0.00013382,2]
[400050186,1767053438129,-500.0,0.00013382,2]
[400050187,1767053438138,-550.18356366,0.00013382,2]
[400050188,1767053438148,-500.0,0.00013382,2]
[400050189,1767053438157,-500.0,0.00013382,2]
[400050190,1767053438167,-500.0,0.00013382,2]
[400050191,1767053438176,-573.44959626,0.00013382,2]
[400050192,1767053438186,-500.0,0.00013382,2]
[400050193,1767053438195,-500.0,0.00013382,2]
[400050194,1767053438205,-500.0,0.00013382,2]
[400050195,1767053438215,-500.0,0.00013382,2]
[400050196,1767053438224,-500.0,0.00013382,2]
[400050197,1767053438235,-573.44959626,0.00013382,2]
[400050198,1767053438245,-500.0,0.00013382,2]
[400050199,1767053438254,-450.34390428,0.00013382,2]
[400050200,1767053438264,-500.0,0.00013382,2]
[400050201,1767053438274,-500.0,0.00013382,2]
[400050202,1767053438283,-500.0,0.00013382,2]
[400050203,1767053438429,-573.44959626,0.00013382,2]
[400050204,1767053438439,-500.0,0.00013382,2]
[400050205,1767053438449,-210.5379787,0.00013382,2]
[400050206,1767053438458,-500.0,0.00013382,2]
[400050207,1767053438468,-573.44959626,0.00013382,2]
[400050208,1767053438478,-500.0,0.00013382,2]
[400050209,1767053438487,-500.0,0.00013382,2]
[400050210,1767053438497,-500.0,0.00013382,2]
[400050211,1767053438507,-573.44959626,0.00013382,2]
[400050212,1767053438516,-500.0,0.00013382,2]
[400050213,1767053438526,-500.0,0.00013382,2]
[400050214,1767053438536,-500.0,0.00013382,2]
[400050215,1767053438545,-500.0,0.00013382,2]
[400050216,1767053438555,-573.44959626,0.00013382,2]
[400050217,1767053438564,-638.91238998,0.00013382,2]
[400050218,1767053438574,-573.44959626,0.00013382,2]
[400050219,1767053438584,-500.0,0.00013382,2]
[400050220,1767053438594,-500.0,0.00013382,2]
[400050221,1767053438604,-245.93390945,0.00013382,2]
[400050222,1767053438614,-573.44959626,0.00013382,2]
[400050223,1767053438623,-500.0,0.00013382,2]
[400050224,1767053438633,-500.0,0.00013382,2]
[400050225,1767053438643,-573.44959626,0.00013382,2]
[400050226,1767053438652,-500.0,0.00013382,2]
[400050227,1767053438661,-573.44959626,0.00013382,2]
[400050228,1767053438672,-500.0,0.00013382,2]
[400050229,1767053438681,-573.44959626,0.00013382,2]
[400050230,1767053438691,-573.44959626,0.00013382,2]
[400050231,1767053438700,-500.0,0.00013382,2]
[400050232,1767053438710,-573.44959626,0.00013382,2]
[400050233,1767053438719,-500.0,0.00013382,2]
[400050234,1767053438729,-573.44959626,0.00013382,2]
[400050235,1767053438739,-573.44959626,0.00013382,2]
[400050236,1767053438750,-500.0,0.00013382,2]
[400050237,1767053438761,-573.44959626,0.00013382,2]
[400050238,1767053438771,-573.44959626,0.00013382,2]
[400050239,1767053438782,-573.44959626,0.00013382,2]
[400050240,1767053438792,-573.44959626,0.00013382,2]
[400050241,1767053438802,-573.44959626,0.00013382,2]
[400050242,1767053438812,-573.44959626,0.00013382,2]
[400050243,1767053438822,-573.44959626,0.00013382,2]
[400050244,1767053438833,-573.44959626,0.00013382,2]
[400050245,1767053438843,-573.44959626,0.00013382,2]
[400050246,1767053438853,-573.44959626,0.00013382,2]
[400050247,1767053438863,-573.44959626,0.00013382,2]
[400050248,1767053438874,-573.44959626,0.00013382,2]
[400050249,1767053438884,-573.44959626,0.00013382,2]
[400050250,1767053438893,-573.44959626,0.00013382,2]
[400050251,1767053438903,-573.44959626,0.00013382,2]
[400050252,1767053438913,-573.44959626,0.00013382,2]
[400050253,1767053438924,-573.44959626,0.00013382,2]
[400050254,1767053438933,-573.44959626,0.00013382,2]
[400050255,1767053438944,-573.44959626,0.00013382,2]
[400050256,1767053438953,-573.44959626,0.00013382,2]
[400050257,1767053438963,-573.44959626,0.00013382,2]
[400050258,1767053438975,-573.44959626,0.00013382,2]
[400050259,1767053438984,-573.44959626,0.00013382,2]
[400050260,1767053438994,-573.44959626,0.00013382,2]
[400050261,1767053439004,-573.44959626,0.00013382,2]
[400050262,1767053439014,-573.44959626,0.00013382,2]
[400050263,1767053439024,-573.44959626,0.00013382,2]
[400050264,1767053439034,-573.44959626,0.00013382,2]
[400050265,1767053439045,-573.44959626,0.00013382,2]
[400050266,1767053439056,-500.0,0.00013382,2]
[400050267,1767053439068,-500.0,0.00013382,2]
[400050268,1767053439079,-500.0,0.00013382,2]
[400050269,1767053439088,-450.0,0.00013382,2]
[400050270,1767053439098,-500.0,0.00013382,2]
[400050271,1767053439107,-564.11437027,0.00013382,2]
[400050272,1767053439117,-564.11437027,0.00013382,2]
[400050273,1767053439127,-564.11437027,0.00013382,2]
[400050274,1767053439137,-564.11437027,0.00013382,2]
[400050275,1767053439147,-564.11437027,0.00013382,2]
[400050276,1767053439156,-564.11437027,0.00013382,2]
[400050277,1767053439168,-564.11437027,0.00013382,2]
[400050278,1767053439178,-564.11437027,0.00013382,2]
[400050279,1767053439188,-564.11437027,0.00013382,2]
[400050280,1767053439198,-564.11437027,0.00013382,2]
[400050281,1767053439207,-564.11437027,0.00013382,2]
[400050282,1767053439217,-564.11437027,0.00013382,2]
[400050283,1767053439226,-564.11437027,0.00013382,2]
[400050284,1767053439235,-564.11437027,0.00013382,2]
[400050285,1767053439246,-564.11437027,0.00013382,2]
[400050286,1767053439255,-564.11437027,0.00013382,2]
[400050287,1767053439265,-564.11437027,0.00013382,2]
[400050288,1767053439274,-564.11437027,0.00013382,2]
[400050289,1767053439284,-564.11437027,0.00013382,2]
[400050290,1767053439294,-564.11437027,0.00013382,2]
[400050291,1767053439304,-564.11437027,0.00013382,2]
[400050292,1767053439314,-564.11437027,0.00013382,2]
[400050293,1767053439324,-564.11437027,0.00013382,2]
[400050294,1767053439337,-564.11437027,0.00013382,2]
[400050295,1767053439347,-564.11437027,0.00013382,2]
[400050296,1767053439356,-564.11437027,0.00013382,2]
[400050297,1767053439366,-564.11437027,0.00013382,2]
[400050298,1767053439378,-564.11437027,0.00013382,2]
[400050299,1767053439387,-564.11437027,0.00013382,2]
[400050300,1767053439398,-564.11437027,0.00013382,2]
[400050301,1767053439409,-564.11437027,0.00013382,2]
[400050302,1767053439419,-564.11437027,0.00013382,2]
[400050303,1767053439428,-564.11437027,0.00013382,2]
[400050304,1767053439438,-564.11437027,0.00013382,2]
[400050305,1767053439448,-564.11437027,0.00013382,2]
[400050306,1767053439457,-564.11437027,0.00013382,2]
[400050307,1767053439467,-588.48968257,0.00013382,2]
[400050308,1767053439476,-588.48968257,0.00013382,2]
[400050309,1767053439486,-588.48968257,0.00013382,2]
[400050310,1767053439496,-588.48968257,0.00013382,2]
[400050311,1767053439505,-588.48968257,0.00013382,2]
[400050312,1767053439515,-588.48968257,0.00013382,2]
[400050313,1767053439524,-588.48968257,0.00013382,2]
[400050314,1767053439534,-588.48968257,0.00013382,2]
[400050315,1767053439543,-588.48968257,0.00013382,2]
[400050316,1767053439553,-50000.0,0.00013382,2]
[400050317,1767053439562,-1200.0,0.00013382,2]
[400050318,1767053439571,-1047.58,0.0001341,2]
[400050319,1767053439581,-2883.30220438,0.00013542,2]
[400050320,1767053439591,-300.0,0.00013654,2]
[400050321,1767053439600,-300.0,0.00013654,2]
[400050322,1767053439610,-300.0,0.00013654,2]
[400050323,1767053439619,-300.0,0.00013654,2]
[400050324,1767053439628,-300.0,0.00013654,2]
[400050325,1767053439638,-300.0,0.00013654,2]
[400050326,1767053439647,-300.0,0.00013654,2]
[400050327,1767053439656,-300.0,0.00013654,2]
[400050328,1767053439666,-300.0,0.00013654,2]
[400050329,1767053439675,-300.0,0.00013654,2]
[400050330,1767053439685,-300.0,0.00013654,2]
[400050331,1767053439695,-300.0,0.00013654,2]
[400050332,1767053439704,-300.0,0.00013654,2]
[400050333,1767053439714,-300.0,0.00013654,2]
[400050334,1767053439724,-300.0,0.00013654,2]
[400050335,1767053439733,-600.0,0.00013654,2]
[400050336,1767053439743,-163.48675578,0.00013673,2]
[400050337,1767053439752,-500.0,0.00013698,2]
[400050338,1767053439762,-623.26,0.00013698,2]
[400050339,1767053439771,-623.26,0.00013698,2]
[400050340,1767053439781,-623.26,0.00013698,2]
[400050341,1767053439790,-623.26,0.00013698,2]
[400050342,1767053439799,-623.26,0.00013698,2]
[400050343,1767053439809,-623.26,0.00013698,2]
[400050345,1767053439818,-623.26,0.00013698,2]
[400050347,1767053439828,-623.26,0.00013698,2]
[400050349,1767053439837,-623.26,0.00013698,2]
[400050351,1767053439846,-623.26,0.00013698,2]
[400050353,1767053439855,-623.26,0.00013698,2]
[400050355,1767053439865,-623.26,0.00013698,2]
[400050357,1767053439874,-623.26,0.00013698,2]
[400050359,1767053439883,-623.26,0.00013698,2]
[400050361,1767053439893,-623.26,0.00013698,2]
[400050363,1767053439903,-623.26,0.00013698,2]
[400050365,1767053439912,-623.26,0.00013698,2]
[400050367,1767053439921,-623.26,0.00013698,2]
[400050368,1767053439930,-623.26,0.00013698,2]
[400050370,1767053439940,-623.26,0.00013698,2]
[400050373,1767053439950,-623.26,0.00013698,2]
[400050374,1767053439959,-623.26,0.00013698,2]
[400050376,1767053439969,-623.26,0.00013698,2]
[400050378,1767053439978,-623.4449749,0.00013698,2]
[400050381,1767053439988,-578.55078283,0.00013698,2]
[400050382,1767053439998,-500.0,0.00013698,2]
[400050384,1767053440008,-500.0,0.00013698,2]
[400050386,1767053440017,-500.0,0.00013698,2]
[400050388,1767053440027,-500.0,0.00013698,2]
[400050390,1767053440036,-511.31418948,0.00013698,2]
[400050392,1767053440046,-627.95351682,0.00013698,2]
[400050394,1767053440055,-500.0,0.00013698,2]
[400050396,1767053440065,-500.0,0.00013698,2]
[400050398,1767053440074,-500.0,0.00013698,2]
[400050400,1767053440083,-500.0,0.00013698,2]
[400050402,1767053440093,-500.0,0.00013698,2]
[400050404,1767053440102,-500.0,0.00013698,2]
[400050406,1767053440111,-500.0,0.00013698,2]
[400050408,1767053440120,-500.0,0.00013698,2]
[400050410,1767053440130,-500.0,0.00013698,2]
[400050412,1767053440139,-500.0,0.00013698,2]
[400050414,1767053440147,-500.0,0.00013698,2]
[400050416,1767053440158,-500.0,0.00013698,2]
[400050418,1767053440167,-500.0,0.00013698,2]
[400050420,1767053440175,-500.0,0.00013698,2]
[400050422,1767053440184,-500.0,0.00013698,2]
[400050424,1767053440194,-500.0,0.00013698,2]
[400050426,1767053440202,-500.0,0.00013698,2]
[400050428,1767053440211,-500.0,0.00013698,2]
[400050429,1767053440221,-500.0,0.00013698,2]
[400050431,1767053440230,-500.0,0.00013698,2]
[400050433,1767053440239,-500.0,0.00013698,2]
[400050435,1767053440248,-500.0,0.00013698,2]
[400050437,1767053440257,-500.0,0.00013698,2]
[400050439,1767053440268,-500.0,0.00013698,2]
[400050441,1767053440277,-404.88,0.00013698,2]
[400050443,1767053440287,-500.0,0.00013699,2]
[400050445,1767053440296,-580.75858867,0.00013699,2]
[400050447,1767053440306,-500.0,0.00013699,2]
[400050449,1767053440316,-500.0,0.00013699,2]
[400050451,1767053440325,-500.0,0.00013699,2]
[400050453,1767053440338,-636.58480261,0.00013699,2]
[400050455,1767053440347,-514.30268831,0.00013699,2]
[400050457,1767053440357,-500.3719998,0.00013699,2]
[400050459,1767053440365,-500.0,0.00013699,2]
[400050461,1767053440378,-500.0,0.00013699,2]
[400050462,1767053440387,-500.30541626,0.00013699,2]
[400050464,1767053440397,-518.68115133,0.00013699,2]
[400050466,1767053440406,-340.03522917,0.00013699,2]
[400050468,1767053440415,-506.69804643,0.00013699,2]
[400050470,1767053440424,-500.0,0.00013699,2]
[400050472,1767053440434,-500.5438368,0.00013699,2]
[400050474,1767053440443,-501.41401372,0.00013699,2]
[400050476,1767053440452,-173.33607365,0.00013699,2]
[400050478,1767053440463,-223.65384929,0.00013699,2]
[400050480,1767053440472,-501.54886217,0.00013699,2]
[400050482,1767053440482,-500.20372006,0.00013699,2]
[400050484,1767053440491,-500.0,0.00013699,2]
[400050486,1767053440500,-500.0,0.00013699,2]
[400050488,1767053440509,-500.77567295,0.00013699,2]
[400050490,1767053440518,-500.0,0.00013699,2]
[400050492,1767053440527,-500.0,0.00013699,2]
[400050494,1767053440536,-500.65201175,0.00013699,2]
[400050496,1767053440545,-500.0,0.00013699,2]
[400050498,1767053440554,-599.35395839,0.00013699,2]
[400050500,1767053440564,-184.55482318,0.00013699,2]
[400050502,1767053440574,-159.38821259,0.00013699,2]
[400050504,1767053440584,-500.0,0.00013699,2]
[400050506,1767053440593,-500.0,0.00013699,2]
[400050508,1767053440602,-166.13136323,0.00013699,2]
[400050510,1767053440612,-455.82336012,0.00013699,2]
[400050511,1767053440622,-500.0,0.00013699,2]
[400050513,1767053440632,-500.32148679,0.00013699,2]
[400050515,1767053440642,-523.8766182,0.00013699,2]
[400050517,1767053440651,-523.56380716,0.00013699,2]
[400050519,1767053440660,-333.64434173,0.00013699,2]
[400050521,1767053440670,-500.0,0.00013699,2]
[400050523,1767053440679,-2883.30220435,0.00013907,2]
[400050525,1767053440688,-1571.38,0.00014019,2]
[400050527,1767053440697,-500.0,0.00014247,2]
[400050529,1767053440706,-500.0,0.00014247,2]
[400050531,1767053440716,-500.0,0.00014247,2]
[400050533,1767053440726,-400.0,0.00014247,2]
[400050535,1767053440736,-1000.0,0.00014247,2]
[400050537,1767053440745,-2883.30220435,0.00014271,2]
[400050539,1767053440754,-2095.17,0.00014629,2]
[400050541,1767053440764,-2883.30220435,0.00014636,2]
[400050543,1767053440774,-420.0,0.00014669,2]
[400050545,1767053440783,-420.0,0.00014669,2]
[400050547,1767053440793,-1680.0,0.0001467,2]
[400050549,1767053440804,-415.46,0.00014695,2]
[400050551,1767053440813,-377.0,0.00014719,2]
[400050553,1767053440822,-1500.0,0.00014795,2]
[400050555,1767053440831,-2883.30220435,0.00015,2]
[400050557,1767053440841,-720.0,0.00015019,2]
[400050559,1767053440851,-100000.0,0.00015028,2]
[400050569,1767053440861,-160.0,0.000151,2]
[400050571,1767053440963,-2618.96,0.00015239,2]
[400050573,1767053440973,-177.0,0.00015273,2]
[400050575,1767053440983,-2000.0,0.00015342,2]
[400050577,1767053440993,-1181.68932168,0.00015389,2]
[400050579,1767053441002,-260.0,0.00015648,2]
[400050581,1767053441012,-3142.75,0.00015848,2]
[400050583,1767053441021,-2500.0,0.0001589,2]
[400050585,1767053441031,-587.0,0.0001608,2]
[400050587,1767053441040,-360.0,0.00016196,2]
[400050589,1767053441049,-500.0,0.00016438,2]
[400050591,1767053441058,-500.0,0.00016438,2]
[400050593,1767053441067,-500.0,0.00016438,2]
[400050595,1767053441076,-500.0,0.00016438,2]
[400050596,1767053441085,-500.0,0.00016438,2]
[400050598,1767053441095,-500.0,0.00016438,2]
[400050600,1767053441104,-439.97592923,0.00016438,2]
[400050602,1767053441113,-3000.0,0.00016438,2]
[400050604,1767053441123,-3666.55,0.00016458,2]
[400050606,1767053441132,-200.0,0.00016473,2]
[400050608,1767053441142,-864.0,0.00016521,2]
[400050610,1767053441151,-460.0,0.00016744,2]
[400050612,1767053441160,-3790.93147808,0.00016746,2]
[400050614,1767053441170,-919.99982286,0.00016908,2]
[400050616,1767053441179,-3500.0,0.00016986,2]
[400050618,1767053441188,-4190.34,0.00017067,2]
[400050620,1767053441198,-796.8678,0.000171,2]
[400050622,1767053441207,-204.0,0.00017273,2]
[400050624,1767053441216,-560.0,0.00017292,2]
[400050626,1767053441226,-4000.0,0.00017534,2]
[400050628,1767053441235,-250.0,0.00017537,2]
[400050630,1767053441244,-823.0,0.00017628,2]
[400050631,1767053441253,-4714.13,0.00017677,2]
[400050633,1767053441263,-660.0,0.0001784,2]
[400050635,1767053441272,-278.40277077,0.00017842,2]
[400050637,1767053441281,-4500.0,0.00018082,2]
[400050639,1767053441291,-1000.0,0.00018173,2]
[400050640,1767053441300,-5237.92,0.00018286,2]
[400050641,1767053441309,-760.0,0.00018388,2]
[400050642,1767053441318,-1181.68932168,0.00018389,2]
[400050643,1767053441328,-5000.0,0.0001863,2]
[400050644,1767053441341,-303.05454739,0.000189,2]
[400050645,1767053441351,-860.0,0.00018936,2]
[400050646,1767053441360,-303.05454739,0.00019089,2]
[400050647,1767053441371,-500.0,0.000191,2]
[400050648,1767053441381,-500.0,0.00019178,2]
[400050649,1767053441390,-500.0,0.00019178,2]
[400050650,1767053441400,-500.0,0.00019178,2]
[400050651,1767053441411,-500.0,0.00019178,2]
[400050652,1767053441421,-500.0,0.00019178,2]
[400050653,1767053441430,-500.0,0.00019178,2]
[400050654,1767053441439,-500.0,0.00019178,2]
[400050655,1767053441448,-500.0,0.00019178,2]
[400050656,1767053441458,-500.0,0.00019178,2]
[400050657,1767053441467,-500.0,0.00019178,2]
[400050658,1767053441477,-413.6278121,0.00019178,2]
[400050659,1767053441487,-5500.0,0.00019178,2]
[400050660,1767053441496,-166.47,0.000192,2]
[400050661,1767053441506,-231.0,0.00019273,2]
[400050662,1767053441515,-303.05454739,0.00019278,2]
[400050664,1767053441525,-1802.09,0.000193,2]
[400050666,1767053441534,-12494.59,0.000193,2]
[400050668,1767053441543,-160.2,0.000193,2]
[400050669,1767053441553,-156.97,0.000193,2]
[400050671,1767053441562,-300.0,0.00019315,2]
[400050673,1767053441571,-1152.0,0.00019325,2]
[400050675,1767053441581,-450.0,0.00019452,2]
[400050677,1767053441590,-303.05454739,0.00019467,2]
[400050679,1767053441599,-620.0,0.00019484,2]
[400050681,1767053441608,-600.0,0.00019589,2]
[400050683,1767053441617,-303.05454739,0.00019656,2]
[400050685,1767053441626,-706.1484877,0.00019726,2]
[400050687,1767053441635,-6000.0,0.00019726,2]
[400050689,1767053441645,-454.58182109,0.00019845,4]
[400050691,1767053441654,-500.0,0.00019963,2]
[400050693,1767053441664,-500.0,0.00019963,2]
[400050695,1767053441673,-481.64675475,0.00019963,2]
[400050697,1767053441683,-1000.0,0.0001999,2]
[400050699,1767053441692,-244.0,0.0001999,2]
[400050701,1767053441702,-618.0,0.0002,2]
[400050703,1767053441712,-454.58182109,0.00020034,4]
[400050705,1767053441720,-454.58182109,0.00020223,4]
[400050707,1767053441730,-4192.89424911,0.00020274,2]
[400050709,1767053441739,-1041.66666667,0.00020401,2]
[400050711,1767053441748,-160.0,0.00020401,2]
[400050712,1767053441758,-454.58182109,0.00020412,4]
[400050714,1767053441767,-454.58182101,0.00020601,4]
[400050716,1767053441776,-171.0,0.00020849,3]
[400050718,1767053441785,-321.5,0.00020986,2]
[400050720,1767053441796,-1613.0,0.00021185,2]
[400050722,1767053441806,-258.0,0.00021273,2]
[400050724,1767053441816,-1181.68932168,0.00021388,2]
[400050726,1767053441825,-500.0,0.0002186,2]
[400050728,1767053441835,-965.69768194,0.000219,2]
[400050730,1767053441844,-965.69768192,0.000219,2]
[400050732,1767053441853,-965.69768192,0.000219,2]
[400050734,1767053441863,-965.69768192,0.000219,2]
[400050736,1767053441872,-965.69768192,0.000219,2]
[400050738,1767053441882,-965.69768192,0.000219,2]
[400050740,1767053441892,-965.69768192,0.000219,2]
[400050741,1767053441901,-965.69768192,0.000219,2]
[400050743,1767053441910,-965.69768192,0.000219,2]
[400050745,1767053441919,-965.69768192,0.000219,2]
[400050747,1767053441928,-500.0,0.00021917,2]
[400050749,1767053441937,-277.6938934,0.00021917,2]
[400050751,1767053441946,-486.28780482,0.00021917,2]
[400050753,1767053441955,-511.89011642,0.00021917,2]
[400050755,1767053441964,-424.72070765,0.00021917,2]
[400050757,1767053441973,-327.08881678,0.00021917,2]
[400050759,1767053441982,-327.50837283,0.00021917,2]
[400050761,1767053441991,-205.57380574,0.00021917,2]
[400050763,1767053442001,-370.21932107,0.00021917,2]
[400050765,1767053442012,-214.56132807,0.00021917,2]
[400050767,1767053442021,-410.54004209,0.00021917,2]
[400050769,1767053442031,-278.49487928,0.00021917,2]
[400050771,1767053442041,-372.81822915,0.00021917,2]